Cogmind - Beta 17 @@@ ROGUE MODE // 2026.08.01 @ 07:44:53 Player: ChCbias Result: Destroyed by G-34 Mercenary with Small Laser Performance ------------- Evolutions (0) 0 Regions Visited (1) 200 Robots Destroyed (26) 130 Value Destroyed (600) 600 Prototype IDs (0) 0 Alien Tech Used (0) 0 Bonus (0) 0 TOTAL SCORE: 930 Bonus ------- None Cogmind --------- Core Integrity 0/250 Matter 300/300 Energy 160/160 System Corruption 4% Temperature Cool (6) Movement Treading (320) Ox2 Location -10/Materials Parts ------- > --- POWER (1) -------- Light Nuclear Core > --- PROPULSION (2) --- Light Treads > --- UTILITY (2) ------ Improved Heat Sink High-capacity Storage Unit > --- WEAPON (2) ------- Medium Laser > --- INVENTORY (20) --- Light Nuclear Core Light Treads Flight Unit Flight Unit Flight Unit Medium Storage Unit Machine Analyzer Seismic Detector Hacking Suite Peak State ------------ > --- POWER ------------ Light Nuclear Core > --- PROPULSION ------- Light Treads Light Treads > --- UTILITY ---------- Improved Heat Sink Small Storage Unit > --- WEAPON ----------- Medium Laser Light Assault Rifle > --- INVENTORY -------- Light Nuclear Core Flight Unit Flight Unit Flight Unit Machine Analyzer Medium Laser [Rating: 12] Favorites ----------- Power Light Nuclear Core Engine Light Ion Engine Power Core Light Nuclear Core Propulsion Light Treads Treads Light Treads Utility Improved Heat Sink Device Improved Heat Sink Storage Small Storage Unit Weapon Medium Laser Energy Gun Medium Laser Ballistic Gun Light Assault Rifle Build | -11 -10 ------- Run | Yrd Mat Slots Evolved . | . . Power . | . . Propulsion . | . . Utility . | . . Weapon . | . . Parts Attached 11 | 6 5 Power 2 | 1 1 Engine 1 | 1 . Core 1 | . 1 Reactor . | . . Propulsion 2 | 2 . Treads 2 | 2 . Leg . | . . Wheel . | . . Hover . | . . Flight . | . . Utility 4 | 1 3 Device 1 | . 1 Storage 3 | 1 2 Processor . | . . Hackware . | . . Protection . | . . Artifact . | . . Weapon 3 | 2 1 Energy Gun 2 | 1 1 Energy Cannon . | . . Ballistic Gun 1 | 1 . Ballistic Cannon . | . . Launcher . | . . Special Weapon . | . . Impact Weapon . | . . Slashing Weapon . | . . Piercing Weapon . | . . Special Melee Weapon . | . . Unidentified Prototypes . | . . Parts Lost 4 | . 4 Power 1 | . 1 Propulsion 1 | . 1 Utility . | . . Weapon 2 | . 2 Highest Loss Streak 2 | . 2 To Critical Strikes . | . . Average Backups 7 | 2 7 Power 1 | . 1 Propulsion 3 | 1 3 Utility 1 | . 1 Weapon . | . . Tool/Special . | . . Unused Backups 14 | . 14 Power 2 | . 2 Propulsion 9 | . 9 Utility 3 | . 3 Weapon . | . . Tool/Special . | . . Average Slot Usage (%) 96 | . 96 Engine 5 | . 5 Core 8 | . 8 Treads 27 | . 27 Device 11 | . 11 Storage 14 | . 14 Energy Gun 14 | . 14 Ballistic Gun 13 | . 13 Peak Build Rating 12 | 6 12 Average Rating 10 | 4 10 On Entrance 3 | . 6 Avg Prop Armor Cover (%) . | . . Naked Turns . | . . Heaviest Build 49 | 11 49 Greatest Support 40 | 40 40 Greatest Overweight (x) 1 | . 1 Average Overweight (x) . | . . Largest Inventory Capacity 20 | 8 20 Average Capacity 12 | 7 12 Most Carried 10 | 6 10 Average Carried 7 | 2 7 Final Capacity 20 | 8 20 Final Carried 9 | 6 9 Class Distribution -------------------- 100% | Mutant Dominant Class ---------------- Mutant | -10/Materials Resources | -11 -10 ----------- Run | Yrd Mat Matter Collected 401 | 260 141 Remotely . | . . Salvage Created 947 | . 947 Parts 52 | . 52 Haulers Intercepted 2 | . 2 Recyclers Shooed 1 | . 1 Parts Field Recycled . | . . Retrieved Matter . | . . Parts Self-Destructed . | . . Prevented . | . . Parts Restored . | . . Kills | -11 -10 ------- Run | Yrd Mat Combat Hostiles Destroyed 17 | . 17 Guns 17 | . 17 Classes Destroyed 7 | . 7 Worker 3 | . 3 Hauler 2 | . 2 Recycler 2 | . 2 Mechanic 1 | . 1 Operator 1 | . 1 Swarmer 3 | . 3 Grunt 14 | . 14 Best Kill Streak 6 | . 6 Combat Bots Only 5 | . 5 Max Kills in Single Turn 1 | . 1 Gunslinging . | . . Exploded . | . . Melee . | . . Uniques/NPCs Destroyed . | . . Combat | -11 -10 -------- Run | Yrd Mat Hostile Shots Fired 88 | . 88 Missed 22 | . 22 Hits 66 | . 66 Projectile 66 | . 66 Damage Taken 786 | . 786 Core 254 | . 254 Absorbed by Shields . | . . Core Remaining (%) 100 | 100 . Volleys Fired 80 | . 80 Largest 2 | . 2 Hottest 70 | . 70 Shots Fired 152 | . 152 Gun 152 | . 152 Cannon . | . . Launcher . | . . Special . | . . Kinetic 72 | . 72 Thermal 80 | . 80 Explosive . | . . Electromagnetic . | . . Robot Hit Streak 21 | . 21 Robot Miss Streak 4 | . 4 Penetration Max . | . . Secondary Targets . | . . Shots Hit Robots 105 | . 105 Core Hits 50 | . 50 Critical Kills . | . . Critical Parts Destroyed . | . . Critical Strikes 12 | . 12 Burn 12 | . 12 Melee Attacks . | . . Impact . | . . Slashing . | . . Piercing . | . . Sneak Attacks . | . . Combat Hostiles . | . . Follow-up Attacks . | . . Damage Inflicted 1233 | . 1233 Guns 1145 | . 1145 Cannons . | . . Explosions 75 | . 75 Melee . | . . Ramming 13 | . 13 Kinetic 381 | . 381 Thermal 839 | . 839 Explosive . | . . Electromagnetic . | . . Impact . | . . Slashing . | . . Piercing . | . . Highest Corruption 4 | . 4 Average Corruption 3 | . 3 Corruption Purged . | . . Corruption Blocked . | . . Effects 13 | . 13 Message Errors 2 | . 2 Matter Fused 6 | . 6 Heat Flow Errors 2 | . 2 Energy Discharges 1 | . 1 Data Loss (major) 1 | . 1 Alerts 1 | . 1 Overload Shots . | . . Overflow Damage . | . . Projectiles . | . . Explosions . | . . Melee . | . . Knockbacks . | . . Impact . | . . Kinetic . | . . Secondary . | . . Self-Inflicted Damage 74 | . 74 Shots 1 | . 1 Rammed 6 | . 6 Targets Rammed 8 | . 8 Kicked . | . . Crushed 2 | . 2 Highest Temperature 197 | . 197 Average Temperature 29 | . 29 Received Heat Transfer 333 | . 333 Siege Activations . | . . Martial Activations . | . . Shielding Activations . | . . Robots Disrupted . | . . Combat Hostiles . | . . Robots Corrupted . | . . Combat Hostiles . | . . Parts Fried . | . . Impact Corruptions . | . . Robots Melted . | . . Combat Hostiles . | . . Parts Melted 2 | . 2 Heat Transferred 3208 | . 3208 Parts Sabotaged . | . . Parts Stolen . | . . Parts Stripped . | . . Power Chain Reactions . | . . Alert | -11 -10 ------- Run | Yrd Mat Maximum Alert Level 1 | . 1 Low Security (%) 91 | 100 91 Level 1 8 | . 8 Level 2 . | . . Level 3 . | . . Level 4 . | . . Level 5 . | . . High Security . | . . Max Security . | . . Peak Influence 239 | . 239 Initial . | . . Average 116 | . 123 Influence Increases 583 | . 583 Destroy 0b10 Robot/C 340 | . 340 Destroy 0b10 Robot/NC 45 | . 45 Destroy Leader 84 | . 84 Successful Hack 47 | . 47 Disable Machine 30 | . 30 Destroy Structure 7 | . 7 Lose Combat Pursuer 30 | . 30 Influence Decreases 443 | . 443 Time Decay 403 | . 403 Lost Part 40 | . 40 Squads Dispatched 6 | . 6 Investigation 4 | . 4 Extermination . | . . Reinforcement 2 | . 2 Assault . | . . Garrison . | . . Intercept . | . . Searches Triggered . | . . Construction Impeded . | . . Haulers Reinforced . | . . Active Scanning Responses . | . . Cargo Convoy Interrupts . | . . Stealth | -11 -10 --------- Run | Yrd Mat Distress Signals 3 | . 3 Communications Jammed . | . . Distress Signals . | . . Times Spotted 31 | . 31 Peak Tracking Total 8 | . 8 Tactical Retreats 2 | . 2 Traps | -11 -10 ------- Run | Yrd Mat Traps Triggered 5 | . 5 Indirectly . | . . Trap Hack Attempts . | . . Triggered . | . . Disarmed . | . . Reprogrammed . | . . Reused . | . . Traps Extracted . | . . Installed . | . . Triggered . | . . Machines | -11 -10 ---------- Run | Yrd Mat Machines Disabled 2 | . 2 Max in Single Turn 2 | . 2 Machines Repaired . | . . Machines Dismantled . | . . Machines Sabotaged . | . . Overloaded Fab Kills . | . . Hacking | -11 -10 --------- Run | Yrd Mat Machines Accessed 6 | . 6 Terminals 5 | . 5 Fabricators . | . . Repair Stations . | . . Recycling Units 1 | . 1 Scanalyzers . | . . Garrison Access . | . . Total Hacks 16 | . 16 Successful 8 | . 8 Failed 8 | . 8 Catastrophic 1 | . 1 Database Lockouts . | . . Manual 16 | . 16 Terminals 15 | . 15 Fabricators . | . . Repair Stations . | . . Recycling Units 1 | . 1 Scanalyzers . | . . Garrison Access . | . . Terminal Hacks 3 | . 3 Robot Analysis 1 | . 1 Alert Level 1 | . 1 Hauler Manifests 1 | . 1 Fabricator Hacks . | . . Repair Station Hacks . | . . Recycling Unit Hacks . | . . Scanalyzer . | . . Garrison Access Hacks . | . . Unauthorized Hacks 5 | . 5 Terminals 4 | . 4 Assimilate 2 | . 2 Botnet 2 | . 2 Fabricators . | . . Repair Stations . | . . Recycling Units 1 | . 1 Reject 1 | . 1 Scanalyzers . | . . Garrison Access . | . . Data Cores Recovered . | . . Used . | . . Hacking Detections 3 | . 3 Full Trace Events 1 | . 1 Feedback Events . | . . Feedback Blocked . | . . Robot Schematics Acquired . | . . Robots Built . | . . Authchips . | . . Time . | . . Total Robot Build Rating . | . . Part Schematics Acquired . | . . Parts Built . | . . Authchips . | . . Time . | . . Total Part Build Rating . | . . Part Studies Acquired . | . . Parts Repaired . | . . Time . | . . Parts Recycled . | . . Recycled Matter . | . . Retrieved Matter . | . . Retrieved Components . | . . Parts Scanalyzed . | . . Part Schematics Acquired . | . . Parts Damaged . | . . Bothacking | -11 -10 ------------ Run | Yrd Mat Used RIF Installer . | . . Robots Hacked . | . . Non-combat . | . . Combat . | . . Robot Hacks Applied . | . . Relay Couplers Released . | . . Fabnet Peak Effective % . | . . Robots Rewired . | . . Allies Hacked . | . . Hacks Repelled . | . . Allies | -11 -10 -------- Run | Yrd Mat Total Allies . | . . Largest Group . | . . Highest-Rated Group . | . . Highest-Rated Ally . | . . Total Orders . | . . Ally Attacks . | . . Total Damage . | . . Kills . | . . Allies Corrupted . | . . Allies Melted . | . . Intel | -11 -10 ------- Run | Yrd Mat Active Infowar (turns) . | . . Robot Analysis Total 1 | . 1 Derelict Logs Recovered . | . . Drone Launches . | . . Drone Recoveries . | . . Exploration | -11 -10 ------------- Run | Yrd Mat Turns Passed 1394 | 87 1307 Spaces Moved 529 | 49 480 Core 5 | 5 . Treads 524 | 44 480 Legs . | . . Wheels . | . . Hover . | . . Flight . | . . Fastest Speed 50 | 50 160 Average Speed 178 | 148 181 Slowest Speed 240 | 160 240 Overloaded Moves . | . . Propulsion Burnouts . | . . Robots Hopped . | . . Potential Cave-ins . | . . Cave-ins Triggered . | . . Exploration Rate (%) 41 | 4 78 Regions Visited 1 Branch Regions . Pre-discovered Areas . | . . Known Exits Taken . | . . Unknown Exits Taken 1 | 1 . Scrap Searched . | . . Spaces Dug . | . . Terrain Destroyed 6 | . 6 Melee . | . . Projectile . | . . AOE 6 | . 6 Terrain Rammed . | . . Walls Destroyed . | . . Machines Disabled . | . . Actions | -11 -10 --------- Run | Yrd Mat Total 829 | 60 769 Wait 179 | . 179 Move 528 | 48 480 Hop . | . . Pick Up 16 | 6 10 Fast Attach 7 | 6 1 Attach 2 | . 2 Detach . | . . Swap 2 | . 2 Drop 7 | . 7 Fire 80 | . 80 Melee . | . . Ram . | . . Kick . | . . Crush 8 | . 8 Escape Stasis . | . . Rewire . | . . Trap . | . . Miscellaneous . | . . Route ------- -11/Scrapyard -10/Materials (discovered 4 exits: [*Mat] / [*Min x2] / [*Sub]) History --------- Turn | Location | Event 4 | -11/Scrapyard | Discovered new exit (range 14) 88 | -11/Scrapyard | Entered Materials 183 | -10/Materials | Discovered new exit (range 6) 348 | -10/Materials | Build established: Mutant 444 | -10/Materials | Discovered new exit (range 13) 467 | -10/Materials | Core integrity fell below 50% 633 | -10/Materials | Discovered new exit (range 6) 858 | -10/Materials | Discovered new exit (range 3) 1074 | -10/Materials | Core integrity fell below 20% 1388 | -10/Materials | Derelicts attacked the area 1395 | -10/Materials | Destroyed by G-34 Mercenary with Small Laser Last Messages --------------- (Burn). 01357_ G-34 Mercenary overheating. 01360_ K-01 Serf cleans the Nuclear Reactor. 01360_ G-34 Mercenary destroyed. 01362_ Acquired 20 matter. 01370_ K-01 Serf collects debris. 01370_ W-16 Scout sends out distress signal. 01373_ K-01 Serf cleans the Terminal. 01378_ K-01 Serf cleans the Pressure Siphon. 01379_ G-34 Mercenary suffers critical hit (Burn). 01381_ K-01 Serf cleans the Pressure Siphon. 01382_ Lgt. Treads destroyed. 01383_ Slammed into G-34 Mercenary. 01385_ K-01 Serf collects debris. 01386_ System corrupted: Matter fused (-5). 01386_ Slammed into G-34 Mercenary. 01388_ ALERT: Derelict incursion detected, rerouting patrols to target area. 01389_ Slammed into G-34 Mercenary. Map ----- +----------------------------------------------------+ | | | | | | | | | | | | | | | | | | | | | | | | | | | | | | | ??????????????###########????????????????? | | ??????????????# #??????????????? | | ??????????????# = "#??????????????? | | ??????????????# T#??????????????? | | ??????????????# """ """ "#??????????????? | | ??????????????# """ """ #??????????????? | | ??????????????# """ """ #??????????????? | | ??????????????# % #??????????????? | | ??????????##########/######??????????????? | | ????+######"""T"""# #######+#??????????? | | # @ * #??????????? | | w%g % g #??????????? | | """ """ """ # ] #??????????? | | ?????? """ """ """ #########??????????? | | ?????? """ """ """ #?????????????????? | | ?? """ """ #?????????????????? | | ? #?????????????????? | | ? #?????????????????? | | ??### #?????????????????? | | ????# ########### #?????????????????? | | ????###???????????# #???????########### | | ??????????????????# ######### # # | | ?????????????#????# ## # < # ] # | | ???????????? #?# ## # # # | | ???????????? #?# ## + + # | | ???????????? ??# + # # """ # | | ???????????? ! #?# %### #^^ # """ # | | #?????????? #?# %#?# # # """ # | | #?????????? ??# #?######## ####### | | #?????????? ??# ########## # # | | #?????????? """??# # ## # # | | #????????? """??# + ## # """ # | | #????????? ""???# # ## # """ # | | #########? ????## ########## + """ # | | # ##+####### ######### # # | +----------------------------------------------------+ Best States ------------- Heat Dissipation 39 Energy Generation 14 Energy Capacity 160 Matter Stores 300 Matter Capacity 300 Sight Range 16 Terrain Scan Density 10 Evasion (%) 40 Recoil Reduction 2 Item Schematics ----------------- None Robot Schematics ------------------ None Fabricated ------------ Nothing Repaired ---------- Nothing Studied --------- None Alien Tech Used ----------------- None Achievements -------------- None Challenges ------------ None Game ------ Seed IonicMicrowarpNullifier Manual? 0 Play Time 00:12:03 Cumulative 107.4 hours Start 2026.08.01 @ 07:38:38 End 2026.08.01 @ 07:44:53 Sessions 1 Manual Loads 0 Difficulty Rogue Special Mode None Game No. 64 Rogue 64 Adventurer 0 Explorer 0 Win Type - Total 1 Types 1/0/0/0/0/0/0/0/0/0 Lore% 63 Gallery% 51 Achievement% 48 Wizard Run 0 Options --------- Layout 1 ASCII 0 Keyboard 1 Movement Arrows Keybinds 0 Fullscreen 1 Font 24/Smallcaps Map View 50x35 Zoom Use 0% Tactical HUD 1 Map Filters NONE Filters NONE Steam 1 RUN: b01c8e5c-4af3-4fc3-9d02-cce6c97bcfed